bitfinex-derivatives/quotes_BTCF0:USTF0_20251129
["timestamp","ask_amount","ask_price","bid_price","bid_amount"]
[1764408169910,0.0709751,90606.0,90605.0,0.05601901]
[1764408174407,0.09696983,90606.0,90605.0,0.05601901]
[1764408178720,0.08322983,90606.0,90605.0,0.05601901]
[1764408183027,0.08322983,90606.0,90605.0,0.46705421]
[1764408184429,0.0572351,90606.0,90605.0,0.46705421]
[1764408190127,0.0572351,90606.0,90605.0,0.45601901]
[1764408190332,0.0710751,90606.0,90605.0,0.45601901]
[1764408191223,0.09710048,90606.0,90605.0,0.05601901]
[1764408191428,0.09710048,90606.0,90605.0,0.06601901]
[1764408193341,0.08326048,90606.0,90605.0,0.44601901]
[1764408193545,0.04006048,90606.0,90605.0,0.44601901]
[1764408193845,0.08415048,90606.0,90605.0,0.44601901]
[1764408195749,0.08415048,90606.0,90605.0,0.05601901]
[1764408195948,0.08415048,90606.0,90605.0,0.10601901]
[1764408196151,0.08415048,90606.0,90605.0,0.31601901]
[1764408196350,0.07311538,90606.0,90605.0,0.31601901]
[1764408197444,0.02902538,90606.0,90605.0,0.31601901]
[1764408197741,0.003,90606.0,90605.0,0.31601901]
[1764408198351,0.0339832,90622.0,90621.0,0.0568633]
[1764408198539,0.02601304,90622.0,90621.0,0.4868633]
[1764408199343,0.0561323,90629.0,90628.0,0.04583]
[1764408199550,0.08212976,90629.0,90628.0,0.04583]
[1764408200339,0.08912976,90629.0,90628.0,0.04783]
[1764408200545,0.09012976,90629.0,90628.0,0.04783]
[1764408206256,0.09012976,90629.0,90628.0,0.05875302]
[1764408208357,0.09012976,90629.0,90628.0,0.01292302]
[1764408208958,0.09012976,90629.0,90628.0,0.03610302]
[1764408209454,0.0641323,90629.0,90628.0,0.02518]
[1764408209657,0.0641323,90629.0,90628.0,0.002]
[1764408209847,0.08961501,90629.0,90628.0,0.002]
[1764408211659,0.50961501,90629.0,90628.0,0.002]
[1764408213658,0.50961501,90629.0,90628.0,0.02518]
[1764408214458,0.4841323,90629.0,90628.0,0.02518]
[1764408218562,0.50962169,90629.0,90628.0,0.02518]
[1764408219762,0.50962169,90629.0,90628.0,0.04776]
[1764408220670,0.22962169,90629.0,90628.0,0.04776]
[1764408223372,0.08962169,90629.0,90628.0,0.04776]
[1764408232670,0.08968467,90629.0,90628.0,0.04776]
[1764408236977,0.51968467,90629.0,90628.0,0.002]
[1764408238579,0.0691336,90618.0,90617.0,0.3608]
[1764408238775,0.52468597,90618.0,90617.0,0.3608]
[1764408240577,0.52968597,90618.0,90617.0,0.3618]
[1764408241684,0.52868597,90618.0,90617.0,0.3618]
[1764408242183,0.0337928,90625.0,90624.0,0.04441]
[1764408242386,0.02555394,90625.0,90624.0,0.44071]
[1764408242684,0.0110317,90635.0,90630.0,0.04441]
[1764408242886,0.0110319,90633.0,90630.0,0.3254422]
[1764408243078,0.02292551,90631.0,90630.0,0.3254422]
[1764408243279,0.02292551,90631.0,90630.0,0.31441]
[1764408243582,0.04586551,90631.0,90630.0,0.31441]
[1764408244686,0.04586551,90631.0,90630.0,0.04441]
[1764408244883,0.0457,90627.0,90626.0,0.3608]
[1764408245083,0.0567336,90618.0,90617.0,0.05530817]
[1764408245287,0.0567336,90618.0,90617.0,0.04441]
[1764408246383,0.0567336,90618.0,90616.0,0.37203243]
[1764408246590,0.0457,90617.0,90616.0,0.53492243]
[1764408246777,0.0457,90617.0,90616.0,0.55644243]
[1764408247889,0.0457,90617.0,90616.0,0.81644243]
[1764408248590,0.0467,90617.0,90616.0,0.82144243]
[1764408250502,0.0467,90617.0,90616.0,0.47144243]
[1764408254999,0.0467,90617.0,90616.0,0.11064243]
[1764408255205,0.0467,90617.0,90616.0,0.47144243]
[1764408257006,0.0467,90617.0,90616.0,0.73144243]
[1764408260009,0.0467,90617.0,90616.0,0.50144243]
[1764408264313,0.07224772,90617.0,90616.0,0.50144243]
[1764408264908,0.07224772,90617.0,90616.0,0.14064243]
[1764408265111,0.07224772,90617.0,90616.0,0.50144243]
[1764408270016,0.07211846,90617.0,90616.0,0.50144243]
[1764408273018,0.07211846,90617.0,90616.0,0.42144243]
[1764408273218,0.07211846,90617.0,90616.0,0.83144243]
[1764408274417,0.0467,90617.0,90616.0,0.83144243]
[1764408284235,0.02376,90617.0,90616.0,0.83144243]
[1764408286428,0.001,90617.0,90616.0,0.83144243]
[1764408288032,0.02416,90617.0,90616.0,0.83144243]
[1764408289330,0.001,90617.0,90616.0,0.83144243]
[1764408291129,0.047,90617.0,90616.0,0.83144243]
[1764408291434,0.02416,90617.0,90616.0,0.83144243]
[1764408291634,0.047,90617.0,90616.0,0.83144243]
[1764408292631,0.02416,90617.0,90616.0,0.83144243]
[1764408295038,0.02416,90617.0,90616.0,0.42144243]
[1764408295430,0.02416,90617.0,90616.0,0.84144243]
[1764408297540,0.02416,90617.0,90616.0,0.48064243]
[1764408297753,0.02416,90617.0,90616.0,0.84144243]
[1764408298445,0.001,90617.0,90616.0,0.84144243]
[1764408299443,0.001,90617.0,90616.0,0.48064243]
[1764408299644,0.001,90617.0,90616.0,0.84144243]
[1764408300345,0.001,90617.0,90616.0,0.48064243]
[1764408300544,0.001,90617.0,90616.0,0.84144243]
[1764408301052,0.001,90617.0,90616.0,0.85397243]
[1764408303648,0.3718308,90641.0,90630.0,0.0665622]
[1764408303840,0.13024721,90640.0,90630.0,0.6911222]
[1764408304041,0.04378551,90631.0,90630.0,0.9585922]
[1764408304433,0.04378551,90631.0,90630.0,0.94756]
[1764408304641,0.04378551,90631.0,90630.0,0.4038]
[1764408304846,0.0690242,90631.0,90630.0,0.4038]
[1764408305248,0.04478551,90631.0,90630.0,0.4058]
[1764408308442,0.04478551,90631.0,90630.0,0.002]
[1764408308443,0.84081235,90631.0,90630.0,0.002]
[1764408308952,0.0546538,90617.0,90616.0,0.4038]
[1764408309151,0.0546538,90617.0,90616.0,0.4838]
[1764408310350,0.0556538,90617.0,90616.0,0.4898]
[1764408313350,0.04462,90617.0,90616.0,0.4898]
[1764408313549,0.04462,90617.0,90616.0,0.50059016]
[1764408314355,0.06984583,90617.0,90616.0,0.50059016]
[1764408316865,0.06984583,90617.0,90616.0,0.79059016]
[1764408317163,0.04797583,90617.0,90616.0,0.79059016]
[1764408319057,0.02622583,90617.0,90616.0,0.79059016]
[1764408320760,0.3608,90630.0,90629.0,0.04509]
[1764408320962,0.4058,90630.0,90629.0,0.04509]
[1764408321158,0.41955,90630.0,90629.0,0.04509]
[1764408321565,0.4305822,90630.0,90629.0,0.04509]
[1764408323371,0.4315822,90630.0,90629.0,0.04709]
[1764408327372,0.0707822,90630.0,90629.0,0.04709]
[1764408327773,0.0707822,90630.0,90629.0,0.0581223]
[1764408328377,0.0707822,90630.0,90629.0,0.06943933]
[1764408328566,0.0707822,90630.0,90629.0,0.05840703]
[1764408332275,0.046,90630.0,90629.0,0.48943933]
[1764408332673,0.0242,90630.0,90629.0,0.48943933]
[1764408333675,0.001,90630.0,90629.0,0.48943933]
[1764408340380,0.01353,90645.0,90630.0,0.04457]
[1764408340585,0.01353,90645.0,90630.0,0.4171]
[1764408340787,0.01353,90645.0,90630.0,0.7779]
[1764408340986,0.0245604,90645.0,90630.0,0.7779]
[1764408341182,0.0110307,90643.0,90630.0,0.7779]
[1764408341388,0.01353,90645.0,90630.0,0.7779]
[1764408341389,0.011031,90640.0,90630.0,0.7779]
[1764408341589,0.00116551,90631.0,90630.0,0.7799]
[1764408358093,0.0468458,90646.0,90645.0,0.0563903]
[1764408358305,0.0468458,90646.0,90645.0,0.9809103]
[1764408359106,0.0478458,90646.0,90645.0,0.9809103]
[1764408360898,0.0508458,90646.0,90645.0,0.9819103]
[1764408363604,0.0275258,90646.0,90645.0,0.9819103]
[1764408363791,0.0508458,90646.0,90645.0,0.9819103]
[1764408366606,0.0508458,90646.0,90645.0,0.99307912]
[1764408368100,0.0042758,90646.0,90645.0,0.99307912]
[1764408368510,0.0275258,90646.0,90645.0,0.99307912]
[1764408369012,0.0508458,90646.0,90645.0,0.99307912]
[1764408369402,0.0042758,90646.0,90645.0,0.99307912]
[1764408372515,0.0275258,90646.0,90645.0,0.99307912]
[1764408372912,0.0508458,90646.0,90645.0,0.99307912]
[1764408381109,0.0042758,90646.0,90645.0,0.99307912]
[1764408391927,0.0476958,90646.0,90645.0,0.99307912]
[1764408395425,0.0042758,90646.0,90645.0,0.99307912]
[1764408396834,0.0042758,90646.0,90645.0,1.00560912]
[1764408397930,0.0002758,90646.0,90645.0,1.00560912]
[1764408398132,0.0022758,90646.0,90645.0,1.01460912]
[1764408404530,0.02675061,90646.0,90645.0,1.01460912]
[1764408406933,0.02675061,90646.0,90645.0,0.65380912]
[1764408407135,0.02675061,90646.0,90645.0,1.01460912]
[1764408410853,0.07017061,90646.0,90645.0,1.00207912]
[1764408414354,0.0456958,90646.0,90645.0,1.00207912]
[1764408415449,0.0456958,90646.0,90645.0,1.00203912]
[1764408416948,0.0456958,90646.0,90645.0,0.64123912]
[1764408417146,0.0456958,90646.0,90645.0,1.00203912]
[1764408421949,0.0586858,90646.0,90645.0,1.00203912]
[1764408428659,0.0022758,90646.0,90645.0,1.00203912]
[1764408429263,0.0240158,90646.0,90645.0,1.00203912]
[1764408429664,0.0022758,90646.0,90645.0,1.00203912]
[1764408431363,0.0022758,90646.0,90645.0,1.08150127]
[1764408431765,0.0022758,90646.0,90645.0,1.09286127]
[1764408432061,0.0022758,90646.0,90645.0,1.01339912]
[1764408433461,0.0022758,90646.0,90645.0,1.37419912]
[1764408435865,0.0022758,90646.0,90645.0,1.47419912]
[1764408436766,0.0022758,90646.0,90645.0,1.37419912]
[1764408437667,0.0022758,90646.0,90645.0,1.47419912]
[1764408437862,0.0022758,90646.0,90645.0,1.37419912]
[1764408439166,0.0022758,90646.0,90645.0,1.49309912]
[1764408452870,0.0580958,90646.0,90645.0,1.48169912]
[1764408455879,0.0446958,90646.0,90645.0,1.48169912]
[1764408457075,0.0446958,90646.0,90645.0,1.36279912]
[1764408468083,0.0446958,90646.0,90645.0,1.18915912]
[1764408468283,0.0446958,90646.0,90645.0,1.36279912]
[1764408473882,0.0580958,90646.0,90645.0,1.36279912]
[1764408474291,0.0446958,90646.0,90645.0,1.36279912]
[1764408475692,0.0580958,90646.0,90645.0,1.36279912]
[1764408476392,0.0580958,90646.0,90645.0,0.64119912]
[1764408476579,0.0580958,90646.0,90645.0,1.36279912]
[1764408477186,0.0580958,90646.0,90645.0,1.18915912]
[1764408477390,0.0580958,90646.0,90645.0,1.35176882]
[1764408478694,0.0580958,90646.0,90645.0,1.30640882]
[1764408482798,0.0580958,90646.0,90645.0,0.52196882]
[1764408482998,0.08253422,90646.0,90645.0,0.52196882]
[1764408483197,0.08253422,90646.0,90645.0,0.38196882]
[1764408486393,0.0580958,90646.0,90645.0,0.38196882]
[1764408489194,0.0580958,90646.0,90645.0,0.02116882]
[1764408492199,0.04451,90637.0,90636.0,0.00016551]
[1764408492507,0.0681925,90627.0,90626.0,0.38343]
[1764408493606,0.0681925,90627.0,90626.0,0.40505]
[1764408493808,0.0691925,90627.0,90626.0,0.41005]
[1764408494407,0.0691925,90627.0,90626.0,0.42120716]
[1764408494703,0.0691925,90627.0,90626.0,0.37695716]
[1764408494903,0.45350177,90627.0,90626.0,0.37695716]
[1764408495303,0.4291925,90627.0,90626.0,0.37695716]
[1764408495500,0.45349388,90627.0,90626.0,0.37695716]
[1764408496309,0.4291925,90627.0,90626.0,0.37695716]
[1764408497916,0.45348082,90627.0,90626.0,0.01461178]
[1764408498104,0.0692136,90618.0,90617.0,0.36096551]
[1764408499208,0.0692136,90618.0,90617.0,0.38422551]
[1764408499399,0.0712136,90618.0,90617.0,0.39022551]
[1764408500407,0.0692136,90618.0,90617.0,0.38422551]
[1764408500604,0.0712136,90618.0,90617.0,0.38922551]
[1764408501302,0.0712136,90618.0,90617.0,0.41073551]
[1764408502516,0.0712136,90618.0,90617.0,0.42052408]
[1764408502718,0.0712136,90618.0,90617.0,0.37575408]
[1764408502902,0.5012136,90618.0,90617.0,0.00416551]
[1764408503106,0.05818,90606.0,90605.0,0.40557]
[1764408503312,0.0692151,90606.0,90605.0,0.38406]
[1764408503614,0.0692151,90606.0,90605.0,0.40557]
[1764408504125,0.0692151,90606.0,90605.0,0.3608]
[1764408504311,0.0712151,90606.0,90605.0,0.3668]
[1764408504710,0.4612151,90606.0,90605.0,0.006]
[1764408504909,0.4612151,90606.0,90605.0,0.007]
[1764408507017,0.4612151,90606.0,90603.0,0.01129333]
[1764408507215,0.04517,90601.0,90600.0,0.04328001]
[1764408508915,0.04717,90601.0,90600.0,0.04328001]
[1764408509105,0.04717,90601.0,90600.0,0.04428001]
[1764408511017,0.04717,90601.0,90600.0,0.05511789]
[1764408528526,0.04717,90601.0,90600.0,0.03368789]
[1764408528732,0.04717,90601.0,90600.0,0.05511789]
[1764408533037,0.04717,90601.0,90600.0,0.01195789]
[1764408533333,0.07190947,90601.0,90600.0,0.05511789]
[1764408534035,0.07190947,90601.0,90600.0,0.01195789]
[1764408536135,0.04717,90601.0,90600.0,0.01195789]
[1764408538839,0.04717,90601.0,90600.0,0.03343789]
[1764408539340,0.04717,90601.0,90600.0,0.05461789]
[1764408540137,0.02419,90601.0,90600.0,0.05461789]
[1764408540333,0.04637,90601.0,90600.0,0.05461789]
[1764408544636,0.071027,90601.0,90600.0,0.05461789]
[1764408552042,0.07102508,90601.0,90600.0,0.05461789]
[1764408557742,0.07102508,90601.0,90600.0,0.05612789]
[1764408578077,0.07102508,90601.0,90600.0,0.03405789]
[1764408578379,0.43182508,90601.0,90600.0,0.01195789]
[1764408579381,0.43182508,90601.0,90600.0,0.03460789]
[1764408579976,0.43182508,90601.0,90600.0,0.05655789]
[1764408580181,0.05817,90597.0,90596.0,0.00016551]
[1764408580472,0.51386128,90597.0,90596.0,0.00016551]
[1764408580678,0.0561275,90586.0,90585.0,0.38345]
[1764408581382,0.05624751,90586.0,90585.0,0.38345]
[1764408581571,0.05624751,90586.0,90585.0,0.39525949]
[1764408581966,0.05624751,90586.0,90585.0,0.41720949]
[1764408582179,0.05624751,90586.0,90585.0,0.41820949]
[1764408583071,0.05824751,90586.0,90585.0,0.41820949]
[1764408587086,0.05824751,90586.0,90585.0,0.01280949]
[1764408587285,0.08215612,90586.0,90585.0,0.01280949]
[1764408587479,0.08215265,90586.0,90585.0,0.01280949]
[1764408587784,0.08215265,90586.0,90585.0,0.03545949]
[1764408587985,0.08215265,90586.0,90585.0,0.05740949]
[1764408588386,0.05824751,90586.0,90585.0,0.05740949]
[1764408602088,0.00212001,90586.0,90585.0,0.49157949]
[1764408602284,0.04678001,90586.0,90585.0,0.56686097]
[1764408602498,0.04678001,90586.0,90585.0,0.05740949]
[1764408602997,0.04678001,90586.0,90585.0,0.45740949]
[1764408603197,0.02483001,90586.0,90585.0,0.45740949]
[1764408604099,0.00212001,90586.0,90585.0,0.45740949]
[1764408605199,0.02483001,90586.0,90585.0,0.45740949]
[1764408605401,0.00212001,90586.0,90585.0,0.45740949]
[1764408607494,0.00212001,90586.0,90585.0,0.53686097]
[1764408608199,0.00212001,90586.0,90585.0,0.45740949]
[1764408608400,0.00212001,90586.0,90585.0,0.53686097]
[1764408608598,0.04678001,90586.0,90585.0,0.53686097]
[1764408609196,0.05781751,90586.0,90585.0,0.53686097]
[1764408612303,0.05781751,90586.0,90585.0,0.49686097]
[1764408612496,0.04678001,90586.0,90585.0,0.49686097]
[1764408614103,0.04678001,90586.0,90585.0,0.41740949]
[1764408615306,0.00212001,90586.0,90585.0,0.43859709]
[1764408618006,0.04615001,90586.0,90585.0,0.01280949]
[1764408618215,0.04615001,90586.0,90585.0,0.001]
[1764408620211,0.0550686,90577.0,90576.0,0.40603551]
[1764408620423,0.0550686,90577.0,90576.0,0.83603551]
[1764408620614,0.0337786,90577.0,90576.0,0.83603551]
[1764408621310,0.0110386,90577.0,90576.0,0.83603551]
[1764408621503,0.0190386,90577.0,90576.0,0.83603551]
[1764408622405,0.008,90577.0,90576.0,0.83603551]
[1764408623415,0.008,90577.0,90576.0,0.84618551]
[1764408623919,0.008,90577.0,90576.0,0.85816738]
[1764408626210,0.008,90577.0,90576.0,0.93761886]
[1764408626518,0.008,90577.0,90576.0,0.85816738]
[1764408640725,0.008,90577.0,90576.0,0.84801738]
[1764408641423,0.0293,90577.0,90576.0,0.84801738]
[1764408642222,0.05075,90577.0,90576.0,0.83801738]
[1764408642424,0.05075,90577.0,90576.0,1.01181738]
[1764408653228,0.008,90577.0,90576.0,1.01181738]
[1764408654025,0.0293,90577.0,90576.0,1.01181738]
[1764408654220,0.05075,90577.0,90576.0,1.01181738]
[1764408656633,0.0293,90577.0,90576.0,1.01181738]
[1764408656931,0.008,90577.0,90576.0,1.01181738]
[1764408657334,0.03056,90577.0,90576.0,1.01181738]
[1764408657729,0.008,90577.0,90576.0,1.01181738]
[1764408657936,0.008,90577.0,90576.0,1.01957738]
[1764408658332,0.008,90577.0,90576.0,1.01181738]
[1764408659735,0.03056,90577.0,90576.0,1.01181738]
[1764408659943,0.03056,90577.0,90576.0,0.65101738]
[1764408660134,0.03056,90577.0,90576.0,1.01181738]
[1764408660337,0.008,90577.0,90576.0,1.01181738]
[1764408660529,0.008,90577.0,90576.0,1.01957738]
[1764408662634,0.00012001,90586.0,90585.0,0.0560676]
[1764408662841,0.00012001,90586.0,90585.0,0.8368676]
[1764408663138,0.02268001,90586.0,90585.0,0.8368676]
[1764408663334,0.00012001,90586.0,90585.0,0.8368676]
[1764408663736,0.04394001,90586.0,90585.0,0.8368676]
[1764408664136,0.05194001,90586.0,90585.0,0.8368676]
[1764408664338,0.05194001,90586.0,90585.0,0.91633104]
[1764408667338,0.06297751,90586.0,90585.0,0.8368676]
[1764408669845,0.05194001,90586.0,90585.0,0.8368676]
[1764408682150,0.05194001,90586.0,90585.0,0.82583]
[1764408683948,0.05194001,90586.0,90585.0,0.46583]
[1764408685345,0.0759743,90586.0,90585.0,0.4208]
[1764408685853,0.0759743,90586.0,90585.0,0.06]
[1764408686555,0.0544785,90578.0,90577.0,0.40433]
[1764408686746,0.07874768,90578.0,90577.0,0.3608]
[1764408687756,0.0431,90577.0,90576.0,0.00016551]
[1764408688050,0.06736918,90577.0,90576.0,0.00016551]
[1764408688854,0.06936918,90577.0,90576.0,0.00016551]
[1764408694754,0.0451,90577.0,90576.0,0.00016551]
[1764408696147,0.04521106,90577.0,90576.0,0.00016551]
[1764408697248,0.04521106,90577.0,90562.0,0.3608]
[1764408697249,0.0431,90563.0,90562.0,0.40622]
[1764408697447,0.0431,90563.0,90562.0,0.76622]
[1764408697847,0.0541403,90563.0,90562.0,0.76622]
[1764408699348,0.0561403,90563.0,90562.0,0.76622]
[1764408699861,0.0561403,90563.0,90562.0,0.76722]
[1764408701456,0.0561403,90563.0,90562.0,0.78233736]
[1764408715963,0.05626031,90563.0,90562.0,0.78233736]
[1764408716165,0.03459031,90563.0,90562.0,0.78233736]
[1764408716665,0.05626031,90563.0,90562.0,0.78233736]
[1764408716870,0.01316031,90563.0,90562.0,0.78233736]
[1764408717267,0.05852031,90563.0,90562.0,0.78233736]
[1764408718264,0.03560031,90563.0,90562.0,0.78233736]
[1764408718763,0.05852031,90563.0,90562.0,0.78233736]
[1764408721867,0.00212001,90563.0,90562.0,0.78233736]
[1764408722260,0.0110395,90571.0,90570.0,0.05296]
[1764408722465,0.00016561,90572.0,90571.0,0.04281]
[1764408722662,0.00016561,90572.0,90571.0,0.44281]
[1764408723266,0.00016561,90572.0,90571.0,0.5222504]
[1764408724367,0.00016561,90572.0,90571.0,0.44281]
[1764408725065,0.00216561,90572.0,90571.0,0.44281]
[1764408725472,0.00216561,90572.0,90571.0,0.44381]
[1764408725671,0.06114561,90572.0,90571.0,0.17381]
[1764408725868,0.04752561,90572.0,90571.0,0.40381]
[1764408731968,0.06114561,90572.0,90571.0,0.40381]
[1764408732473,0.06114561,90572.0,90571.0,0.47381]
[1764408747482,0.04752561,90572.0,90571.0,0.47381]
[1764408748987,0.00216561,90572.0,90571.0,0.83461]
[1764408759500,0.00216561,90572.0,90571.0,0.9140504]
[1764408759707,0.032858,90583.0,90582.0,0.04433]
[1764408759902,0.032858,90583.0,90582.0,0.41433]
[1764408760097,0.011038,90583.0,90582.0,0.41433]
[1764408760599,0.3608,90585.0,90584.0,0.04433]
[1764408760799,0.0435,90592.0,90591.0,0.04433]
[1764408760997,0.00016561,90594.0,90593.0,0.04433]
[1764408761198,0.00016561,90594.0,90593.0,0.47433]
[1764408761702,0.02198561,90594.0,90593.0,0.47433]
[1764408762705,0.02698561,90594.0,90593.0,0.47433]
[1764408764104,0.00516561,90594.0,90593.0,0.47433]
[1764408765798,0.05658,90608.0,90607.0,0.04433]
[1764408766995,0.05758,90608.0,90607.0,0.04433]
[1764408768202,0.06458,90608.0,90607.0,0.04533]
[1764408768899,0.06358,90608.0,90607.0,0.04533]
[1764408769300,0.05758,90608.0,90607.0,0.04533]
[1764408773708,0.05758,90608.0,90607.0,0.05952403]
[1764408779706,0.05758,90608.0,90607.0,0.42952403]
[1764408780011,0.02282,90608.0,90607.0,0.42952403]
[1764408780211,0.04594,90608.0,90607.0,0.42952403]
[1764408780603,0.05966,90608.0,90607.0,0.42952403]
[1764408781412,0.02376,90608.0,90607.0,0.42952403]
[1764408781612,0.04688,90608.0,90607.0,0.42952403]
[1764408781811,0.02376,90608.0,90607.0,0.42952403]
[1764408782505,0.04688,90608.0,90607.0,0.42952403]
[1764408784609,0.0606,90608.0,90607.0,0.42952403]
[1764408785714,0.04688,90608.0,90607.0,0.42952403]
[1764408787114,0.001,90608.0,90607.0,0.79032403]
[1764408789313,0.001,90608.0,90607.0,0.84968168]
[1764408790509,0.001,90608.0,90607.0,0.79032403]
[1764408791718,0.04604561,90617.0,90616.0,0.0543039]
[1764408793216,0.04704561,90617.0,90616.0,0.0543039]
[1764408793515,0.05104561,90617.0,90616.0,0.0563039]
[1764408794516,0.04904561,90617.0,90616.0,0.0573039]
[1764408794716,0.07136406,90617.0,90616.0,0.0573039]
[1764408797117,0.07136406,90617.0,90616.0,0.4673039]
[1764408797313,0.02548406,90617.0,90616.0,0.8281039]
[1764408797518,0.00216561,90617.0,90616.0,0.8281039]
[1764408797714,0.0596,90628.0,90627.0,0.0543025]
[1764408797906,0.08292141,90628.0,90627.0,0.4043025]
[1764408798312,0.08292141,90628.0,90627.0,0.10327]
[1764408799215,0.08392141,90628.0,90627.0,0.10327]
[1764408799714,0.08492141,90628.0,90627.0,0.10427]
[1764408801422,0.0616,90628.0,90627.0,0.04427]
[1764408801617,0.0616,90628.0,90627.0,0.001]
[1764408802817,0.08489862,90628.0,90627.0,0.01536149]
[1764408805418,0.08489862,90628.0,90627.0,0.001]
[1764408819531,0.46489862,90628.0,90627.0,0.001]
[1764408831250,0.82569862,90628.0,90627.0,0.001]
[1764408835458,0.99941862,90628.0,90627.0,0.001]
[1764408836357,0.63861862,90628.0,90627.0,0.001]
[1764408836552,0.99941862,90628.0,90627.0,0.001]
[1764408838257,0.63861862,90628.0,90627.0,0.001]
[1764408838558,0.99941862,90628.0,90627.0,0.001]
[1764408840353,0.04416,90619.0,90618.0,0.00016551]
[1764408840553,0.45745862,90619.0,90618.0,0.00016551]
[1764408841456,0.0551942,90613.0,90611.0,0.05953322]
[1764408841754,0.0551963,90596.0,90595.0,0.3608]
[1764408841960,0.055197,90590.0,90589.0,0.04427]
[1764408842154,0.04416,90587.0,90586.0,0.40507]
[1764408842356,0.04416,90587.0,90586.0,0.43191]
[1764408842753,0.04416,90587.0,90586.0,0.4108]
[1764408843359,0.04616,90587.0,90586.0,0.44391]
[1764408844355,0.04616,90587.0,90586.0,0.44491]
[1764408844554,0.04616,90587.0,90586.0,0.46807]
[1764408845462,0.04616,90587.0,90586.0,0.48175372]
[1764408846160,0.04616,90587.0,90586.0,0.82175372]
[1764408848666,0.002,90587.0,90586.0,0.83279122]
[1764408861767,0.002,90587.0,90586.0,0.89216517]
[1764408863171,0.002,90587.0,90586.0,0.83279122]
[1764408867584,0.002,90587.0,90586.0,0.89220052]
[1764408868285,0.002,90587.0,90586.0,0.83279122]
[1764408868584,0.002,90587.0,90586.0,0.47199122]
[1764408868777,0.002,90587.0,90586.0,0.83279122]
[1764408870288,0.02511,90587.0,90586.0,0.83279122]
[1764408871173,0.04769,90587.0,90586.0,0.83279122]
[1764408871375,0.04769,90587.0,90586.0,1.00659122]
[1764408881880,0.04769,90587.0,90586.0,0.99555372]
[1764408882190,0.04769,90587.0,90586.0,0.60555372]
[1764408882392,0.04769,90587.0,90586.0,0.94555372]
[1764408885194,0.04769,90587.0,90586.0,1.02504262]
[1764408885583,0.04769,90587.0,90586.0,1.03608012]
[1764408887892,0.04769,90587.0,90586.0,1.02504262]
[1764408888295,0.04769,90587.0,90586.0,1.03608012]
[1764408889593,0.04769,90587.0,90586.0,1.02504262]
[1764408890091,0.04769,90587.0,90586.0,1.03608012]
[1764408890292,0.04769,90587.0,90586.0,1.02504262]
[1764408890791,0.04769,90587.0,90586.0,0.66424262]
[1764408894801,0.04769,90587.0,90586.0,0.58475372]
[1764408908014,0.002,90587.0,90586.0,0.58475372]
[1764408911903,0.02415,90587.0,90586.0,0.58475372]
[1764408913315,0.04531,90587.0,90586.0,0.58475372]
[1764408913715,0.04531,90587.0,90586.0,0.24475372]
[1764408915112,0.04531,90587.0,90586.0,0.013]
[1764408915113,0.47836437,90587.0,90586.0,0.013]
[1764408915310,0.84836437,90587.0,90586.0,0.013]
[1764408915508,0.04331,90578.0,90577.0,0.00016551]
[1764408915711,0.48636437,90578.0,90577.0,0.00016551]
[1764408916112,0.85636437,90578.0,90577.0,0.00016551]
[1764408916509,0.85936437,90578.0,90577.0,0.01216551]
[1764408917210,0.85836437,90578.0,90577.0,0.00716551]
[1764408917611,0.85836437,90578.0,90577.0,0.00916551]
[1764408918218,0.85836437,90578.0,90577.0,0.00716551]
[1764408919420,0.62836437,90578.0,90577.0,0.00716551]
[1764408920720,0.48836437,90578.0,90577.0,0.00716551]
[1764408920922,0.48836437,90578.0,90577.0,0.02844551]
[1764408923707,0.48836437,90578.0,90577.0,0.04996551]
[1764408924738,0.46531,90578.0,90577.0,0.02844551]
[1764408925041,0.46531,90578.0,90577.0,0.00716551]
[1764408936947,0.0451,90568.0,90567.0,0.3608]
[1764408937152,0.0561397,90568.0,90567.0,0.7308]
[1764408937441,0.05793,90561.0,90560.0,0.05963599]
[1764408937642,0.0561407,90560.0,90559.0,0.05963599]
[1764408938034,0.0561407,90560.0,90559.0,0.02133]
[1764408938341,0.0561407,90560.0,90559.0,0.04389]
[1764408939045,0.0591407,90560.0,90559.0,0.04389]
[1764408940346,0.0591407,90560.0,90559.0,0.04489]
[1764408941452,0.0591407,90560.0,90559.0,0.10452599]
[1764408942238,0.003,90560.0,90559.0,0.4259308]
[1764408944248,0.003,90560.0,90559.0,0.50543972]
[1764408944747,0.003,90560.0,90559.0,0.4259308]
[1764408947146,0.00016561,90569.0,90568.0,0.0110397]
[1764408947347,0.00016561,90569.0,90568.0,0.4938897]
[1764408948151,0.00416561,90569.0,90568.0,0.4938897]
[1764408949144,0.02629561,90569.0,90568.0,0.4938897]
[1764408949357,0.04926561,90569.0,90568.0,0.4948897]
[1764408951546,0.04926561,90569.0,90568.0,0.4859297]
[1764408952656,0.04926561,90569.0,90568.0,0.49864927]
[1764408953258,0.00416561,90569.0,90568.0,0.49864927]
[1764408956961,0.00416561,90569.0,90568.0,0.50760927]
[1764408960266,0.02691561,90569.0,90568.0,0.50760927]
[1764408960467,0.04824561,90569.0,90568.0,0.49864927]
[1764408961662,0.00416561,90569.0,90568.0,0.50760927]
[1764408962860,0.02691561,90569.0,90568.0,0.50760927]
[1764408963562,0.04824561,90569.0,90568.0,0.49864927]
[1764408965576,0.04824561,90569.0,90568.0,0.48760957]
[1764408965771,0.04824561,90569.0,90568.0,0.49864927]
[1764408966276,0.00416561,90569.0,90568.0,0.49864927]
[1764408966870,0.02691561,90569.0,90568.0,0.49864927]
[1764408970272,0.02691561,90569.0,90568.0,0.57802269]
[1764408971374,0.02691561,90569.0,90568.0,0.49864927]
[1764408976179,0.04824561,90569.0,90568.0,0.49864927]
[1764408976572,0.04824561,90569.0,90568.0,0.85944927]
[1764408978269,0.02691561,90569.0,90568.0,0.85944927]
[1764408978469,0.02691561,90569.0,90568.0,0.49864927]
[1764408978670,0.02691561,90569.0,90568.0,0.85944927]
[1764408978978,0.02691561,90569.0,90568.0,0.49864927]
[1764408979277,0.02691561,90569.0,90568.0,0.85944927]
[1764408981572,0.3608,90586.0,90568.0,0.85944927]
[1764408981573,0.02133,90586.0,90585.0,0.02123]
[1764408981782,0.0551171,90590.0,90589.0,0.04418]
[1764408981974,0.0551171,90590.0,90589.0,0.31418]
[1764408983483,0.0551171,90590.0,90589.0,0.3737641]
[1764408984878,0.0551171,90590.0,90589.0,0.31418]
[1764408985773,0.0611171,90590.0,90589.0,0.31418]
[1764408986881,0.0611171,90590.0,90589.0,0.32695475]
[1764408988886,0.006,90590.0,90589.0,0.32695475]